[Event "Early-Titled-Tuesday-Blitz-June-18-2024"]
[Site "Chess.com"]
[Date "2024.06.18"]
[Round "3"]
[White "Kielinkei"]
[Black "GP9isback23"]
[Result "0-1"]
[WhiteElo "2482"]
[BlackElo "2689"]
[TimeControl "180+1"]
[EndTime "8:29:46 PDT"]
[Termination "GP9isback23 won by resignation"]

1. c4 {[%clk 0:03:00.9]} 1... e6 {[%clk 0:02:50.6]} 2. g3 {[%clk 0:03:00]} 2...
Nf6 {[%clk 0:02:50.4]} 3. Bg2 {[%clk 0:02:59.8]} 3... d5 {[%clk 0:02:51.3]} 4.
Nf3 {[%clk 0:03:00.1]} 4... Be7 {[%clk 0:02:51.2]} 5. O-O {[%clk 0:03:00.6]}
5... O-O {[%clk 0:02:51.9]} 6. b3 {[%clk 0:03:00.9]} 6... a5 {[%clk 0:02:51.3]}
7. Bb2 {[%clk 0:02:56.2]} 7... a4 {[%clk 0:02:51.7]} 8. Na3 {[%clk 0:02:17.1]}
8... c6 {[%clk 0:02:47.5]} 9. d3 {[%clk 0:02:09.9]} 9... Nbd7 {[%clk 0:02:44.4]}
10. Nc2 {[%clk 0:02:06.8]} 10... b5 {[%clk 0:02:32.5]} 11. cxb5 {[%clk
0:02:03.5]} 11... cxb5 {[%clk 0:02:31.6]} 12. Qd2 {[%clk 0:01:45.6]} 12... Bb7
{[%clk 0:02:24.9]} 13. Ba3 {[%clk 0:01:29.6]} 13... Nc5 {[%clk 0:02:10.2]} 14.
Ncd4 {[%clk 0:01:21.7]} 14... Qb6 {[%clk 0:02:06.1]} 15. Rfc1 {[%clk 0:01:15.8]}
15... axb3 {[%clk 0:01:47.2]} 16. axb3 {[%clk 0:01:00.3]} 16... Rfe8 {[%clk
0:01:09]} 17. Bb2 {[%clk 0:00:48.2]} 17... b4 {[%clk 0:01:06.5]} 18. Rxa8 {[%clk
0:00:39.5]} 18... Rxa8 {[%clk 0:01:05.9]} 19. Ra1 {[%clk 0:00:40]} 19... Rc8
{[%clk 0:01:03.1]} 20. Rc1 {[%clk 0:00:27.7]} 20... Bd6 {[%clk 0:01:01.9]} 21.
Qd1 {[%clk 0:00:22.9]} 21... h6 {[%clk 0:00:52.6]} 22. h3 {[%clk 0:00:22.1]}
22... Ra8 {[%clk 0:00:50.5]} 23. Ra1 {[%clk 0:00:21.4]} 23... Rc8 {[%clk
0:00:49.2]} 24. Rc1 {[%clk 0:00:21.5]} 24... Ba6 {[%clk 0:00:47.1]} 25. Ba1
{[%clk 0:00:14.5]} 25... Ne8 {[%clk 0:00:46.3]} 26. Bb2 {[%clk 0:00:14.1]} 26...
Bf8 {[%clk 0:00:45.6]} 27. Ba1 {[%clk 0:00:13.8]} 27... Nd6 {[%clk 0:00:40.9]}
28. Bb2 {[%clk 0:00:13.9]} 28... Nb5 {[%clk 0:00:39.7]} 29. Nxb5 {[%clk
0:00:14.1]} 29... Qxb5 {[%clk 0:00:40.1]} 30. Nd4 {[%clk 0:00:13.3]} 30... Qb6
{[%clk 0:00:40.6]} 31. Ra1 {[%clk 0:00:13.4]} 31... Bb7 {[%clk 0:00:39.9]} 32.
Nf3 {[%clk 0:00:13.4]} 32... Nd7 {[%clk 0:00:35.9]} 33. Bd4 {[%clk 0:00:12.6]}
33... Bc5 {[%clk 0:00:35.8]} 34. Bxc5 {[%clk 0:00:12.6]} 34... Rxc5 {[%clk
0:00:36]} 35. d4 {[%clk 0:00:12.9]} 35... Rc3 {[%clk 0:00:36]} 36. Rc1 {[%clk
0:00:12.4]} 36... Qc7 {[%clk 0:00:35.6]} 37. Rxc3 {[%clk 0:00:11.9]} 37... Qxc3
{[%clk 0:00:31]} 38. e3 {[%clk 0:00:11.9]} 38... Ba6 {[%clk 0:00:26.5]} 39. Bf1
{[%clk 0:00:10.6]} 39... Bxf1 {[%clk 0:00:26.3]} 40. Kxf1 {[%clk 0:00:11.5]}
40... Nf6 {[%clk 0:00:26.5]} 41. Ne5 {[%clk 0:00:08.4]} 41... Ne4 {[%clk
0:00:24.9]} 42. Nd3 {[%clk 0:00:02.9]} 42... Nd2+ {[%clk 0:00:20.5]} 43. Kg2
{[%clk 0:00:02.8]} 43... Qxd3 {[%clk 0:00:20]} 0-1

[Event "Early-Titled-Tuesday-Blitz-June-18-2024"]
[Site "Chess.com"]
[Date "2024.06.18"]
[Round "3"]
[White "ArtemDyachuk"]
[Black "AjedrezInteligente"]
[Result "1-0"]
[WhiteElo "2631"]
[BlackElo "2423"]
[TimeControl "180+1"]
[EndTime "8:29:46 PDT"]
[Termination "ArtemDyachuk won by checkmate"]

1. e4 {[%clk 0:03:00.9]} 1... c6 {[%clk 0:02:59.8]} 2. d4 {[%clk 0:02:58.1]}
2... d5 {[%clk 0:03:00.3]} 3. e5 {[%clk 0:02:58]} 3... c5 {[%clk 0:03:00.2]} 4.
Nf3 {[%clk 0:02:56.9]} 4... Nc6 {[%clk 0:02:59.2]} 5. c4 {[%clk 0:02:57.2]} 5...
e6 {[%clk 0:02:49.2]} 6. Nc3 {[%clk 0:02:51.3]} 6... dxc4 {[%clk 0:02:45.2]} 7.
d5 {[%clk 0:02:49]} 7... exd5 {[%clk 0:02:43.1]} 8. Nxd5 {[%clk 0:02:49.5]} 8...
Nge7 {[%clk 0:02:34.6]} 9. Bxc4 {[%clk 0:02:49.1]} 9... Be6 {[%clk 0:02:06]} 10.
Ne3 {[%clk 0:02:48.3]} 10... Qxd1+ {[%clk 0:02:04.2]} 11. Kxd1 {[%clk
0:02:49.2]} 11... O-O-O+ {[%clk 0:02:00.9]} 12. Ke2 {[%clk 0:02:43.9]} 12...
Bxc4+ {[%clk 0:02:00.7]} 13. Nxc4 {[%clk 0:02:43.5]} 13... Ng6 {[%clk
0:02:01.6]} 14. Be3 {[%clk 0:02:40]} 14... b5 {[%clk 0:01:12.4]} 15. Nd6+ {[%clk
0:02:11.7]} 15... Bxd6 {[%clk 0:01:12.6]} 16. exd6 {[%clk 0:02:12.6]} 16... Rhe8
{[%clk 0:01:10.9]} 17. Rhd1 {[%clk 0:02:08.9]} 17... c4 {[%clk 0:01:10.9]} 18.
Kf1 {[%clk 0:02:08.4]} 18... Nge5 {[%clk 0:01:03.6]} 19. Rd5 {[%clk 0:01:51.7]}
19... Nxf3 {[%clk 0:01:01.9]} 20. gxf3 {[%clk 0:01:50.9]} 20... a6 {[%clk
0:00:58.6]} 21. a4 {[%clk 0:01:49.9]} 21... b4 {[%clk 0:00:53.9]} 22. Rc5 {[%clk
0:01:49.5]} 22... Kb7 {[%clk 0:00:54.3]} 23. Rd1 {[%clk 0:01:29.1]} 23... Re6
{[%clk 0:00:50.7]} 24. Bf4 {[%clk 0:01:28.8]} 24... h6 {[%clk 0:00:19.6]} 25.
Rxc4 {[%clk 0:01:27.4]} 25... g5 {[%clk 0:00:20.2]} 26. Bg3 {[%clk 0:01:27.5]}
26... f5 {[%clk 0:00:20.9]} 27. f4 {[%clk 0:01:23.3]} 27... g4 {[%clk
0:00:21.2]} 28. Rc5 {[%clk 0:01:21.8]} 28... Rdxd6 {[%clk 0:00:20.8]} 29. Rxd6
{[%clk 0:01:18.2]} 29... Rxd6 {[%clk 0:00:21.7]} 30. Rxf5 {[%clk 0:01:16.8]}
30... Rd2 {[%clk 0:00:21.6]} 31. Rf7+ {[%clk 0:01:13.2]} 31... Kb6 {[%clk
0:00:21.1]} 32. f5 {[%clk 0:01:05.4]} 32... Rxb2 {[%clk 0:00:20.2]} 33. f6
{[%clk 0:01:03.9]} 33... b3 {[%clk 0:00:19.9]} 34. Bf4 {[%clk 0:00:36.2]} 34...
Rb1+ {[%clk 0:00:20.4]} 35. Kg2 {[%clk 0:00:35.8]} 35... b2 {[%clk 0:00:20.6]}
36. Be3+ {[%clk 0:00:36]} 36... Ka5 {[%clk 0:00:20.9]} 37. Rb7 {[%clk
0:00:35.9]} 37... Kxa4 {[%clk 0:00:18.1]} 38. f7 {[%clk 0:00:33.3]} 38... Nb4
{[%clk 0:00:18.6]} 39. Rxb4+ {[%clk 0:00:32.1]} 39... Kxb4 {[%clk 0:00:18.4]}
40. f8=Q+ {[%clk 0:00:28.9]} 40... Kb3 {[%clk 0:00:19.3]} 41. Qf7+ {[%clk
0:00:26.4]} 41... Kb4 {[%clk 0:00:19.3]} 42. Qb7+ {[%clk 0:00:26.3]} 42... Kc3
{[%clk 0:00:17.7]} 43. Qc6+ {[%clk 0:00:24.9]} 43... Kb3 {[%clk 0:00:18.1]} 44.
Qd5+ {[%clk 0:00:23.4]} 44... Kc3 {[%clk 0:00:17.9]} 45. Qd4+ {[%clk 0:00:23.2]}
45... Kb3 {[%clk 0:00:15.7]} 46. Qd3+ {[%clk 0:00:22.9]} 46... Ka2 {[%clk
0:00:16.3]} 47. Qc4+ {[%clk 0:00:22.3]} 47... Ka1 {[%clk 0:00:14.4]} 48. Qa4#
{[%clk 0:00:21.1]} 1-0

[Event "Early-Titled-Tuesday-Blitz-June-18-2024"]
[Site "Chess.com"]
[Date "2024.06.18"]
[Round "3"]
[White "ChessboArt"]
[Black "Casper"]
[Result "0-1"]
[WhiteElo "2226"]
[BlackElo "2462"]
[TimeControl "180+1"]
[EndTime "8:29:47 PDT"]
[Termination "Casper won on time"]

1. e4 {[%clk 0:02:57.7]} 1... d5 {[%clk 0:03:00.9]} 2. exd5 {[%clk 0:02:57.5]}
2... Nf6 {[%clk 0:03:01.3]} 3. Bb5+ {[%clk 0:02:58]} 3... Bd7 {[%clk 0:03:01]}
4. Bc4 {[%clk 0:02:46.9]} 4... b5 {[%clk 0:02:55.1]} 5. Bb3 {[%clk 0:02:29.5]}
5... a5 {[%clk 0:02:54]} 6. a3 {[%clk 0:01:52.2]} 6... a4 {[%clk 0:02:46.7]} 7.
Ba2 {[%clk 0:01:51.9]} 7... Bg4 {[%clk 0:02:47.4]} 8. f3 {[%clk 0:01:47.7]} 8...
Bf5 {[%clk 0:02:43]} 9. Nc3 {[%clk 0:01:45.1]} 9... Qd7 {[%clk 0:02:33.8]} 10.
Nge2 {[%clk 0:01:38.4]} 10... e6 {[%clk 0:01:55.9]} 11. dxe6 {[%clk 0:01:32.2]}
11... fxe6 {[%clk 0:01:55.2]} 12. d4 {[%clk 0:01:25.4]} 12... Bd6 {[%clk
0:01:53.4]} 13. Ng3 {[%clk 0:01:18.5]} 13... Bg6 {[%clk 0:01:50.3]} 14. Be3
{[%clk 0:01:09.7]} 14... O-O {[%clk 0:01:49.4]} 15. O-O {[%clk 0:01:04]} 15...
Kh8 {[%clk 0:01:48]} 16. Nce4 {[%clk 0:00:45.2]} 16... Nc6 {[%clk 0:01:34]} 17.
Qd2 {[%clk 0:00:30.5]} 17... Nd5 {[%clk 0:01:16.4]} 18. Nxd6 {[%clk 0:00:24]}
18... Qxd6 {[%clk 0:01:17.3]} 19. c3 {[%clk 0:00:15.7]} 19... Na5 {[%clk
0:01:06.6]} 20. Rae1 {[%clk 0:00:14.9]} 20... Rf7 {[%clk 0:00:59.9]} 21. Ne4
{[%clk 0:00:12.8]} 21... Qc6 {[%clk 0:01:00]} 22. Nc5 {[%clk 0:00:11.3]} 22...
Raf8 {[%clk 0:00:54.5]} 23. Bg5 {[%clk 0:00:11.4]} 23... Bf5 {[%clk 0:00:52.5]}
24. Re5 {[%clk 0:00:09.5]} 24... Nb6 {[%clk 0:00:50.7]} 25. Rfe1 {[%clk
0:00:08.8]} 25... Nbc4 {[%clk 0:00:50.9]} 26. Bxc4 {[%clk 0:00:07]} 26... Nxc4
{[%clk 0:00:51.8]} 27. Qf2 {[%clk 0:00:04.8]} 27... Nxe5 {[%clk 0:00:51.5]} 28.
Rxe5 {[%clk 0:00:05.7]} 28... h6 {[%clk 0:00:50.8]} 29. Be3 {[%clk 0:00:03.8]}
29... Re8 {[%clk 0:00:49.2]} 30. Qf1 {[%clk 0:00:03.2]} 30... Bc2 {[%clk
0:00:42.1]} 31. h3 {[%clk 0:00:03.7]} 31... Bb3 {[%clk 0:00:39.1]} 32. Qc1
{[%clk 0:00:04.2]} 32... Bd5 {[%clk 0:00:37.6]} 33. Bxh6 {[%clk 0:00:04.2]}
33... gxh6 {[%clk 0:00:38.4]} 34. Qxh6+ {[%clk 0:00:04.4]} 34... Rh7 {[%clk
0:00:38.2]} 35. Qf6+ {[%clk 0:00:05]} 35... Rg7 {[%clk 0:00:36.9]} 36. Rh5+
{[%clk 0:00:04.9]} 36... Kg8 {[%clk 0:00:37]} 37. Nd3 {[%clk 0:00:02.6]} 37...
Bxf3 {[%clk 0:00:27.1]} 38. Ne5 {[%clk 0:00:02.2]} 38... Qe4 {[%clk 0:00:12.1]}
0-1

[Event "Early-Titled-Tuesday-Blitz-June-18-2024"]
[Site "Chess.com"]
[Date "2024.06.18"]
[Round "3"]
[White "cycygogne"]
[Black "Barmen_EV"]
[Result "1-0"]
[WhiteElo "2217"]
[BlackElo "2535"]
[TimeControl "180+1"]
[EndTime "8:29:49 PDT"]
[Termination "cycygogne won on time"]

1. e4 {[%clk 0:03:00.9]} 1... e6 {[%clk 0:02:59.2]} 2. d4 {[%clk 0:03:00.5]}
2... d5 {[%clk 0:02:59.7]} 3. e5 {[%clk 0:03:01]} 3... c5 {[%clk 0:03:00.2]} 4.
c3 {[%clk 0:03:00.8]} 4... Nc6 {[%clk 0:03:00.7]} 5. Nf3 {[%clk 0:03:00.9]} 5...
Bd7 {[%clk 0:03:01.4]} 6. Bd3 {[%clk 0:02:57.3]} 6... Rc8 {[%clk 0:03:01.2]} 7.
O-O {[%clk 0:02:57.1]} 7... cxd4 {[%clk 0:03:01.6]} 8. cxd4 {[%clk 0:02:58]}
8... Nb4 {[%clk 0:03:02.3]} 9. Nc3 {[%clk 0:02:54.5]} 9... Nxd3 {[%clk
0:03:02.8]} 10. Qxd3 {[%clk 0:02:55.4]} 10... Ne7 {[%clk 0:03:03.3]} 11. Bg5
{[%clk 0:02:54]} 11... h6 {[%clk 0:03:01.5]} 12. Bh4 {[%clk 0:02:54.1]} 12... g5
{[%clk 0:03:02]} 13. Bg3 {[%clk 0:02:54.6]} 13... Nf5 {[%clk 0:03:02.7]} 14.
Rac1 {[%clk 0:02:45.7]} 14... h5 {[%clk 0:02:45.2]} 15. Nb5 {[%clk 0:02:21.8]}
15... a6 {[%clk 0:02:36.1]} 16. Nd6+ {[%clk 0:02:14.5]} 16... Bxd6 {[%clk
0:01:56]} 17. exd6 {[%clk 0:02:15.4]} 17... h4 {[%clk 0:01:55.1]} 18. Be5 {[%clk
0:02:12.9]} 18... f6 {[%clk 0:01:55.1]} 19. Rxc8 {[%clk 0:01:55.1]} 19... Bxc8
{[%clk 0:01:53.9]} 20. Rc1 {[%clk 0:01:22.7]} 20... fxe5 {[%clk 0:01:30.2]} 21.
dxe5 {[%clk 0:01:23.6]} 21... O-O {[%clk 0:01:15.3]} 22. Nd4 {[%clk 0:01:19.3]}
22... Bd7 {[%clk 0:00:42.9]} 23. Rc7 {[%clk 0:01:18.7]} 23... Qe8 {[%clk
0:00:35.6]} 24. Rxb7 {[%clk 0:01:00.6]} 24... Nxd4 {[%clk 0:00:28.8]} 25. Qxd4
{[%clk 0:01:01.5]} 25... Qg6 {[%clk 0:00:20.1]} 26. h3 {[%clk 0:01:00.5]} 26...
Rf7 {[%clk 0:00:17.5]} 27. Qa7 {[%clk 0:00:58.8]} 27... Qg7 {[%clk 0:00:13.6]}
28. Rb8+ {[%clk 0:00:51]} 28... Kh7 {[%clk 0:00:13.2]} 29. Qxa6 {[%clk
0:00:50.2]} 29... Qxe5 {[%clk 0:00:12.9]} 30. Qd3+ {[%clk 0:00:49.9]} 30... Kg7
{[%clk 0:00:08.7]} 31. Qd2 {[%clk 0:00:41.6]} 31... Qf4 {[%clk 0:00:05.3]} 32.
Qxf4 {[%clk 0:00:39.6]} 32... gxf4 {[%clk 0:00:06.2]} 33. b4 {[%clk 0:00:36.7]}
33... e5 {[%clk 0:00:05.9]} 34. b5 {[%clk 0:00:36.9]} 34... e4 {[%clk
0:00:04.4]} 35. b6 {[%clk 0:00:28.6]} 35... Bc6 {[%clk 0:00:04.9]} 36. Rc8
{[%clk 0:00:26.7]} 36... Bb5 {[%clk 0:00:02.7]} 37. Rc7 {[%clk 0:00:26.5]} 37...
e3 {[%clk 0:00:02.7]} 38. Rxf7+ {[%clk 0:00:19.9]} 38... Kxf7 {[%clk 0:00:03.2]}
39. fxe3 {[%clk 0:00:19.9]} 1-0

[Event "Early-Titled-Tuesday-Blitz-June-18-2024"]
[Site "Chess.com"]
[Date "2024.06.18"]
[Round "3"]
[White "DonCiao"]
[Black "ATM622"]
[Result "0-1"]
[WhiteElo "2103"]
[BlackElo "2548"]
[TimeControl "180+1"]
[EndTime "8:29:49 PDT"]
[Termination "ATM622 won on time"]

1. c4 {[%clk 0:03:00.9]} 1... c5 {[%clk 0:02:58.6]} 2. g3 {[%clk 0:03:00.9]}
2... Nf6 {[%clk 0:02:57.7]} 3. Bg2 {[%clk 0:03:00.4]} 3... e6 {[%clk 0:02:58.1]}
4. Nf3 {[%clk 0:02:58.4]} 4... d5 {[%clk 0:02:58.2]} 5. O-O {[%clk 0:02:53.8]}
5... Be7 {[%clk 0:02:54.8]} 6. b3 {[%clk 0:02:53]} 6... O-O {[%clk 0:02:53.9]}
7. Bb2 {[%clk 0:02:52.1]} 7... b6 {[%clk 0:02:52.8]} 8. e3 {[%clk 0:02:51.8]}
8... Bb7 {[%clk 0:02:52.1]} 9. Nc3 {[%clk 0:02:51.7]} 9... Nc6 {[%clk
0:02:45.8]} 10. cxd5 {[%clk 0:02:49.9]} 10... exd5 {[%clk 0:02:45.7]} 11. d4
{[%clk 0:02:48.7]} 11... Rc8 {[%clk 0:02:43.7]} 12. dxc5 {[%clk 0:02:35.6]}
12... bxc5 {[%clk 0:02:42.3]} 13. Ne2 {[%clk 0:02:17.5]} 13... Ne4 {[%clk
0:02:36.1]} 14. Nf4 {[%clk 0:02:15.5]} 14... Nb4 {[%clk 0:02:21.5]} 15. a3
{[%clk 0:02:11.7]} 15... Na6 {[%clk 0:02:20.9]} 16. Nh5 {[%clk 0:01:44.2]} 16...
Nf6 {[%clk 0:02:14.8]} 17. Nf4 {[%clk 0:01:36.2]} 17... Re8 {[%clk 0:02:09.4]}
18. Bh3 {[%clk 0:01:32.6]} 18... Rc7 {[%clk 0:02:00.1]} 19. Rc1 {[%clk
0:01:07.9]} 19... Ne4 {[%clk 0:01:48.1]} 20. Nh5 {[%clk 0:00:49.7]} 20... Nf6
{[%clk 0:01:47.3]} 21. Nf4 {[%clk 0:00:49.3]} 21... c4 {[%clk 0:01:40.8]} 22.
Nd4 {[%clk 0:00:41.9]} 22... Bf8 {[%clk 0:01:32.4]} 23. Nf5 {[%clk 0:00:35.5]}
23... Ne4 {[%clk 0:01:24.3]} 24. Qg4 {[%clk 0:00:31.1]} 24... c3 {[%clk
0:01:12.2]} 25. Ba1 {[%clk 0:00:28.6]} 25... Bc8 {[%clk 0:00:55.6]} 26. f3
{[%clk 0:00:27]} 26... Nf6 {[%clk 0:00:54.8]} 27. Qg5 {[%clk 0:00:22.5]} 27...
Bxf5 {[%clk 0:00:41.6]} 28. Bxf5 {[%clk 0:00:21.4]} 28... h6 {[%clk 0:00:39.9]}
29. Qh4 {[%clk 0:00:18.8]} 29... g5 {[%clk 0:00:39.8]} 30. Qh3 {[%clk
0:00:13.6]} 30... gxf4 {[%clk 0:00:38.5]} 31. gxf4 {[%clk 0:00:13.7]} 31... Rxe3
{[%clk 0:00:34.7]} 32. Kh1 {[%clk 0:00:13.5]} 32... Bg7 {[%clk 0:00:23.1]} 33.
Rg1 {[%clk 0:00:13.1]} 33... Qf8 {[%clk 0:00:20.5]} 34. Qxh6 {[%clk 0:00:12.5]}
34... Rc6 {[%clk 0:00:08.3]} 35. Bh7+ {[%clk 0:00:04.4]} 35... Kh8 {[%clk
0:00:03.7]} 36. Qh3 {[%clk 0:00:01]} 36... Nxh7 {[%clk 0:00:03.9]} 0-1

[Event "Early-Titled-Tuesday-Blitz-June-18-2024"]
[Site "Chess.com"]
[Date "2024.06.18"]
[Round "3"]
[White "Pakarma"]
[Black "ilovejokes555"]
[Result "0-1"]
[WhiteElo "2424"]
[BlackElo "2209"]
[TimeControl "180+1"]
[EndTime "8:29:49 PDT"]
[Termination "ilovejokes555 won by checkmate"]

1. e4 {[%clk 0:03:00.9]} 1... c5 {[%clk 0:02:59.8]} 2. Nf3 {[%clk 0:03:00]} 2...
d6 {[%clk 0:02:58.8]} 3. g3 {[%clk 0:02:58.3]} 3... Nc6 {[%clk 0:02:55.2]} 4.
Bg2 {[%clk 0:02:58.5]} 4... g6 {[%clk 0:02:55.3]} 5. O-O {[%clk 0:02:58.1]} 5...
Bg7 {[%clk 0:02:55.5]} 6. c3 {[%clk 0:02:58]} 6... Nf6 {[%clk 0:02:54.1]} 7. Qe2
{[%clk 0:02:58.4]} 7... O-O {[%clk 0:02:54]} 8. Na3 {[%clk 0:02:58.7]} 8... a6
{[%clk 0:02:53.1]} 9. Nc2 {[%clk 0:02:58.8]} 9... Rb8 {[%clk 0:02:52.7]} 10. d4
{[%clk 0:02:58.8]} 10... cxd4 {[%clk 0:02:52.3]} 11. cxd4 {[%clk 0:02:59.7]}
11... b5 {[%clk 0:02:51.8]} 12. Rd1 {[%clk 0:02:53]} 12... Qc7 {[%clk
0:02:33.8]} 13. Bg5 {[%clk 0:02:46.3]} 13... Bb7 {[%clk 0:02:25.6]} 14. Rac1
{[%clk 0:02:45.5]} 14... Qb6 {[%clk 0:02:19.3]} 15. e5 {[%clk 0:02:15.1]} 15...
dxe5 {[%clk 0:01:58.3]} 16. dxe5 {[%clk 0:02:13.5]} 16... Ng4 {[%clk 0:01:58.1]}
17. e6 {[%clk 0:01:56.3]} 17... f5 {[%clk 0:01:46]} 18. Rd7 {[%clk 0:01:47.8]}
18... Bxb2 {[%clk 0:01:40.1]} 19. Rcd1 {[%clk 0:01:44.9]} 19... Nf6 {[%clk
0:01:27.8]} 20. Ne3 {[%clk 0:01:24]} 20... Nxd7 {[%clk 0:00:57.2]} 21. Qxb2
{[%clk 0:01:23.4]} 21... Nf6 {[%clk 0:00:54.8]} 22. Nd5 {[%clk 0:01:02.1]} 22...
Nxd5 {[%clk 0:00:47.4]} 23. Rxd5 {[%clk 0:01:03]} 23... Nd8 {[%clk 0:00:45.6]}
24. Rd7 {[%clk 0:00:56.6]} 24... Nxe6 {[%clk 0:00:42]} 25. Rxe7 {[%clk
0:00:56.6]} 25... Rf7 {[%clk 0:00:42]} 26. Rxf7 {[%clk 0:00:52.2]} 26... Kxf7
{[%clk 0:00:41.9]} 27. Bh6 {[%clk 0:00:49.6]} 27... Bxf3 {[%clk 0:00:38.5]} 28.
Bxf3 {[%clk 0:00:48.3]} 28... Qd4 {[%clk 0:00:35.7]} 29. Qc2 {[%clk 0:00:38.9]}
29... Rd8 {[%clk 0:00:31.3]} 30. Kg2 {[%clk 0:00:36.5]} 30... Qd6 {[%clk
0:00:19.6]} 31. Qc3 {[%clk 0:00:23.7]} 31... Nd4 {[%clk 0:00:18.7]} 32. Bb7
{[%clk 0:00:24.4]} 32... b4 {[%clk 0:00:17]} 33. Qc4+ {[%clk 0:00:23.8]} 33...
Ne6 {[%clk 0:00:17]} 34. Bf3 {[%clk 0:00:22.6]} 34... Qd4 {[%clk 0:00:16.7]} 35.
Qxa6 {[%clk 0:00:22.3]} 35... Qd6 {[%clk 0:00:14]} 36. Qa5 {[%clk 0:00:20.2]}
36... Qc5 {[%clk 0:00:12.8]} 37. Qa4 {[%clk 0:00:17.8]} 37... Rd3 {[%clk
0:00:10.5]} 38. Qa8 {[%clk 0:00:15.1]} 38... Rc3 {[%clk 0:00:08.9]} 39. Qh8
{[%clk 0:00:13.1]} 39... Rc2 {[%clk 0:00:08.2]} 40. Qxh7+ {[%clk 0:00:12.9]}
40... Ke8 {[%clk 0:00:08.3]} 41. Qxg6+ {[%clk 0:00:13.2]} 41... Kd7 {[%clk
0:00:08.4]} 42. Qf7+ {[%clk 0:00:13.8]} 42... Kd6 {[%clk 0:00:08.6]} 43. Qf6
{[%clk 0:00:12.5]} 43... Qxf2+ {[%clk 0:00:07.4]} 44. Kh3 {[%clk 0:00:12]} 44...
Qxh2# {[%clk 0:00:07.8]} 0-1

[Event "Early-Titled-Tuesday-Blitz-June-18-2024"]
[Site "Chess.com"]
[Date "2024.06.18"]
[Round "3"]
[White "lamomiajunior"]
[Black "Brown_Bear_MGL"]
[Result "1-0"]
[WhiteElo "2741"]
[BlackElo "2499"]
[TimeControl "180+1"]
[EndTime "8:29:51 PDT"]
[Termination "lamomiajunior won by checkmate"]

1. e4 {[%clk 0:03:00.9]} 1... c6 {[%clk 0:02:59.8]} 2. d4 {[%clk 0:03:00.7]}
2... d5 {[%clk 0:03:00.7]} 3. e5 {[%clk 0:03:01.1]} 3... Bf5 {[%clk 0:02:59.6]}
4. Bd3 {[%clk 0:03:01.1]} 4... Bxd3 {[%clk 0:02:58.7]} 5. Qxd3 {[%clk 0:03:02]}
5... Qa5+ {[%clk 0:02:58.7]} 6. Nd2 {[%clk 0:02:57.8]} 6... e6 {[%clk
0:02:58.3]} 7. Ne2 {[%clk 0:02:50.8]} 7... c5 {[%clk 0:02:37]} 8. c3 {[%clk
0:02:48.8]} 8... Qa6 {[%clk 0:02:30.8]} 9. Qf3 {[%clk 0:02:10.8]} 9... Nc6
{[%clk 0:02:23.3]} 10. O-O {[%clk 0:02:04]} 10... cxd4 {[%clk 0:02:09.7]} 11.
cxd4 {[%clk 0:02:03.2]} 11... Qb6 {[%clk 0:02:00.9]} 12. Qd3 {[%clk 0:01:46.7]}
12... Nh6 {[%clk 0:01:52.6]} 13. Nf3 {[%clk 0:01:46.3]} 13... Nf5 {[%clk
0:01:34.2]} 14. g4 {[%clk 0:01:44.9]} 14... Nfe7 {[%clk 0:01:34.2]} 15. a3
{[%clk 0:01:44.4]} 15... h5 {[%clk 0:01:33.5]} 16. h3 {[%clk 0:01:44.7]} 16...
hxg4 {[%clk 0:01:31.9]} 17. hxg4 {[%clk 0:01:45.6]} 17... Ng6 {[%clk 0:01:12.7]}
18. Kg2 {[%clk 0:01:23.7]} 18... Be7 {[%clk 0:01:06.2]} 19. Be3 {[%clk 0:01:18]}
19... O-O-O {[%clk 0:01:04.5]} 20. b4 {[%clk 0:01:17.2]} 20... Nh4+ {[%clk
0:00:58]} 21. Nxh4 {[%clk 0:01:14.9]} 21... Rxh4 {[%clk 0:00:58.9]} 22. f3
{[%clk 0:01:14.7]} 22... Rdh8 {[%clk 0:00:58.8]} 23. Bf4 {[%clk 0:00:49.4]}
23... g5 {[%clk 0:00:31.5]} 24. Bg3 {[%clk 0:00:49.5]} 24... Rh3 {[%clk
0:00:31.8]} 25. Rac1 {[%clk 0:00:41.6]} 25... Kd7 {[%clk 0:00:29.8]} 26. Rcd1
{[%clk 0:00:23.7]} 26... a5 {[%clk 0:00:26.9]} 27. b5 {[%clk 0:00:23.4]} 27...
Na7 {[%clk 0:00:26.9]} 28. a4 {[%clk 0:00:24]} 28... Nc8 {[%clk 0:00:25.7]} 29.
f4 {[%clk 0:00:23.6]} 29... gxf4 {[%clk 0:00:21]} 30. Nxf4 {[%clk 0:00:24.5]}
30... R3h7 {[%clk 0:00:20.5]} 31. Nh5 {[%clk 0:00:24.2]} 31... Qd8 {[%clk
0:00:18.2]} 32. b6 {[%clk 0:00:20.8]} 32... Qxb6 {[%clk 0:00:16.7]} 33. Rb1
{[%clk 0:00:18.5]} 33... Qa6 {[%clk 0:00:16.8]} 34. Qf3 {[%clk 0:00:09]} 34...
Ke8 {[%clk 0:00:12.5]} 35. Rbc1 {[%clk 0:00:08.7]} 35... Nb6 {[%clk 0:00:05.2]}
36. Rc7 {[%clk 0:00:07.4]} 36... Nc4 {[%clk 0:00:01.8]} 37. Nf6+ {[%clk
0:00:07.4]} 37... Bxf6 {[%clk 0:00:01.8]} 38. Qxf6 {[%clk 0:00:07.9]} 38... Qb6
{[%clk 0:00:01]} 39. Qe7# {[%clk 0:00:07.7]} 1-0